bitfinex/quotes_ETHUSD_20240823
["timestamp","ask_amount","ask_price","bid_price","bid_amount"]
[1724422932647,6.0323,2676.3,2675.0,3.73819]
[1724422932972,0.09344611,2676.2,2675.1,3.73817]
[1724422933181,0.09344611,2676.2,2674.7,3.73873]
[1724422933182,6.615,2675.9,2674.7,3.73873]
[1724422933381,0.09345771,2675.8,2674.6,3.0]
[1724422933530,10.35209,2675.9,2674.6,3.73876]
[1724422933732,6.615,2675.9,2674.8,3.7385]
[1724422933975,6.615,2675.9,2674.8,3.73857]
[1724422934175,6.615,2675.9,2674.9,3.73841]
[1724422934331,3.0,2675.8,2674.8,3.7385]
[1724422934532,0.09345119,2675.7,2674.7,3.73862]
[1724422934846,6.615,2675.9,2675.2,3.73793]
[1724422935049,6.615,2675.9,2675.2,7.47587]
[1724422935252,6.615,2675.9,2675.2,3.73793]
[1724422935474,6.615,2675.9,2675.7,3.73733]
[1724422935780,3.73544,2677.1,2675.7,3.73733]
[1724422935781,6.0324,2676.5,2675.7,3.73733]
[1724422937106,6.0324,2678.7,2676.7,2.13570411]
[1724422937304,6.0324,2678.7,2677.0,6.57886223]
[1724422937463,0.69662103,2678.6,2677.7,3.73443]
[1724422937658,0.69662103,2678.6,2677.5,3.7348]
[1724422937659,0.09336449,2678.5,2677.5,3.7348]
[1724422937859,0.09336449,2678.5,2677.5,3.73471]
[1724422938090,0.09336538,2678.4,2677.5,3.73475]
[1724422938263,0.60324,2678.6,2677.8,3.7344]
[1724422938690,0.60324,2678.6,2677.9,3.73426]
[1724422938910,0.663564,2678.5,2677.6,3.0]
[1724422939110,6.0324,2678.7,2677.9,3.73426]
[1724422939466,6.0324,2678.7,2677.6,3.73461]
[1724422939683,6.12575761,2678.7,2677.7,3.0]
[1724422939882,6.12575761,2678.7,2677.7,6.73444]
[1724422940080,6.0324,2678.7,2677.8,3.7343]
[1724422940264,0.69659511,2678.6,2677.0,6.57886223]
[1724422940463,0.69659511,2678.6,2677.2,3.7352]
[1724422940464,6.0324,2678.5,2677.2,3.7352]
[1724422940776,3.09336976,2678.4,2677.2,3.7352]
[1724422940990,3.09336976,2678.4,2677.1,3.73537]
[1724422941293,6.0324,2678.3,2677.0,6.57886223]
[1724422941465,3.73427,2677.9,2676.3,3.73649]
[1724422941669,6.0324,2677.4,2675.5,12.64686223]
[1724422941864,6.0324,2677.4,2676.4,3.7363]
[1724422941865,0.09341363,2677.3,2676.4,3.7363]
[1724422942081,0.09340845,2677.2,2676.3,3.7364]
[1724422942407,0.09340845,2677.2,2676.3,3.73639]
[1724422942612,0.7059893,2677.2,2676.4,3.73632]
[1724422942766,6.0324,2677.4,2676.7,3.7359]
[1724422943000,6.0324,2677.4,2676.5,3.73609]
[1724422943197,6.0324,2677.4,2676.6,3.73606]
[1724422943551,6.0324,2677.4,2676.5,3.7362]
[1724422943718,6.0324,2677.4,2676.6,3.73598]
[1724422944043,6.0324,2677.4,2676.6,3.73597]
[1724422944210,6.0324,2677.4,2676.5,6.57886223]
[1724422944410,6.0324,2677.4,2676.7,3.73582]
[1724422944614,6.0324,2677.4,2677.1,3.73537]
[1724422944794,6.0324,2677.4,2676.5,9.57886223]
[1724422944998,6.0324,2677.4,2676.6,3.0]
[1724422945300,0.60324,2677.3,2676.8,3.73575]
[1724422945501,6.4066,2677.9,2676.9,3.0]
[1724422945843,6.4066,2677.9,2677.4,3.73496]
[1724422946051,6.4066,2677.9,2677.4,3.73485]
[1724422946540,6.4066,2678.5,2677.6,3.73458]
[1724422946793,0.09335139,2678.4,2677.5,3.0]
[1724422946945,0.64999514,2678.3,2677.5,3.0]
[1724422947154,6.4066,2678.5,2677.5,3.0]
[1724422947155,0.09336499,2678.2,2677.5,3.0]
[1724422947300,6.4066,2678.5,2677.6,3.73468]
[1724422947941,6.4066,2678.5,2677.7,3.7345]
[1724422948111,6.4066,2678.5,2677.6,3.73468]
[1724422948318,6.4066,2678.5,2676.3,6.54770582]
[1724422948647,6.852784,2678.4,2676.9,3.73562]
[1724422948850,6.852784,2678.4,2676.4,3.73634]
[1724422948851,6.1518,2678.4,2677.1,3.73536]
[1724422949032,6.1518,2678.4,2676.8,6.54770582]
[1724422949033,6.1518,2678.4,2677.5,3.73477]
[1724422949203,6.1518,2678.4,2677.4,3.73494]
[1724422949529,0.61518,2678.3,2677.6,3.73468]
[1724422949728,0.61518,2678.3,2677.4,3.73486]
[1724422949729,6.1518,2678.4,2677.4,3.73484]
[1724422949955,6.1518,2678.4,2677.5,3.07448296]
[1724422950115,6.1518,2678.4,2678.1,3.73398]
[1724422950452,6.1518,2678.4,2678.2,3.73383]
[1724422950614,6.7819277,2678.9,2678.2,3.73383]
[1724422950814,7.46012047,2678.9,2677.8,3.73427]
[1724422951013,7.46012047,2678.9,2678.0,3.73402]
[1724422951446,6.7819277,2678.9,2678.4,3.73356]
[1724422951658,6.7819277,2678.9,2678.1,3.0]
[1724422951943,6.7819277,2678.9,2678.3,3.73361]
[1724422952131,6.7819277,2678.9,2678.2,3.73376]
[1724422952514,6.7819277,2678.9,2678.2,3.73374]
[1724422952713,6.7819277,2678.9,2677.9,3.0]
[1724422952714,0.09334005,2678.8,2677.9,3.0]
[1724422952911,7.46012047,2678.9,2678.0,3.73411]
[1724422953114,7.46012047,2678.9,2678.1,3.73397]
[1724422953115,6.7819277,2678.9,2678.1,3.73397]
[1724422953316,6.7819277,2678.9,2678.2,3.73382]
[1724422953748,6.7819277,2678.9,2678.2,3.73374]
[1724422954052,6.7819277,2678.9,2677.9,3.0]
[1724422954474,6.7819277,2678.9,2678.2,3.73371]
[1724422954627,6.7819277,2678.9,2678.5,3.73332]
[1724422954825,6.7819277,2678.9,2677.9,3.0]
[1724422954826,6.7819277,2678.9,2678.3,3.73365]
[1724422955027,0.1304277,2678.9,2678.3,4.18136465]
[1724422955229,0.1304277,2678.9,2678.4,3.73346]
[1724422955462,0.1304277,2678.9,2678.5,3.0]
[1724422955927,0.1304277,2678.9,2678.4,3.73348]
[1724422956126,0.1304277,2678.9,2678.8,3.73301]
[1724422956528,0.1304277,2678.9,2678.8,3.0]
[1724422956743,0.1304277,2678.9,2678.8,6.73301]
[1724422957056,0.1304277,2678.9,2678.8,10.46602]
[1724422957647,0.1304277,2678.9,2678.8,11.01602]
[1724422958087,0.1304277,2678.9,2678.8,21.29673582]
[1724422958233,0.1304277,2678.9,2678.8,17.01372582]
[1724422958571,0.1304277,2678.9,2678.8,17.56372582]
[1724422958775,0.1304277,2678.9,2678.8,13.28071582]
[1724422958944,0.1304277,2678.9,2678.8,17.56372582]
[1724422959145,0.1304277,2678.9,2678.8,3.0]
[1724422959345,0.1304277,2678.9,2677.7,6.5763]
[1724422959548,0.1304277,2678.9,2678.0,3.73412]
[1724422959977,0.1304277,2678.9,2677.8,1.31240058]
[1724422960272,0.1304277,2678.9,2677.9,3.73425]
[1724422960423,0.1304277,2678.9,2677.7,3.73453]
[1724422960628,0.1304277,2678.9,2677.9,3.73426]
[1724422960824,0.1304277,2678.9,2677.7,3.73453]
[1724422961073,0.1304277,2678.9,2677.7,5.13623158]
[1724422961257,6.2154,2678.8,2677.7,3.73453]
[1724422961442,0.09334432,2678.7,2677.7,3.73453]
[1724422961642,0.09334432,2678.7,2677.5,3.73472]
[1724422961934,6.2154,2678.8,2677.2,6.5763]
[1724422962136,6.2154,2678.8,2678.0,3.73407]
[1724422962437,6.2154,2678.8,2678.0,3.73401]
[1724422963509,0.09333424,2678.7,2677.8,3.73435]
[1724422963711,0.09333424,2678.7,2677.9,3.0]
[1724422964109,0.09334716,2678.6,2677.8,3.0]
[1724422964312,6.84998277,2678.8,2677.8,3.73438]
[1724422964642,0.09334541,2678.7,2677.9,3.0]
[1724422964946,6.84998277,2678.8,2676.9,3.73554]
[1724422964947,3.73353,2678.5,2676.9,3.73554]
[1724422965145,6.48316972,2678.4,2676.9,3.73554]
[1724422965311,6.48316972,2678.4,2677.1,3.73534]
[1724422965512,6.48316972,2678.4,2676.6,12.64680582]
[1724422965713,6.3898,2678.4,2677.6,3.73465]
[1724422966042,0.1304277,2678.9,2677.6,3.73459]
[1724422966043,6.3243277,2678.9,2677.6,3.73459]
[1724422966243,0.63243277,2678.8,2677.6,3.73459]
[1724422966458,0.63243277,2678.8,2677.3,6.5346]
[1724422966598,6.28724748,2678.7,2677.4,3.0]
[1724422966800,6.28724748,2678.7,2677.3,3.0]
[1724422966801,0.09335864,2678.6,2677.3,3.0]
[1724422967006,6.1939,2678.7,2677.3,3.73501]
[1724422967239,1.14930322,2678.6,2677.4,3.0]
[1724422967432,1.14930322,2678.6,2677.5,3.73477]
[1724422967649,1.14930322,2678.6,2677.1,6.54770582]
[1724422967650,6.1939,2678.7,2677.7,3.73441]
[1724422967857,6.1939,2678.7,2677.8,3.0744395]
[1724422968143,0.1304277,2678.9,2678.2,3.73384]
[1724422968445,0.1304277,2678.9,2678.4,3.73355]
[1724422968766,0.1304277,2678.9,2678.6,3.73327]
[1724422969044,0.1304277,2678.9,2678.8,7.46602]
[1724422969249,0.1304277,2678.9,2678.8,10.46602]
[1724422969402,0.1304277,2678.9,2678.8,11.01602]
[1724422969805,6.3228,2681.5,2679.4,6.6337]
[1724422969998,0.1304277,2681.6,2679.5,3.66337]
[1724422969999,6.3228,2681.3,2679.5,3.66337]
[1724422970218,0.09327925,2681.2,2679.5,3.66337]
[1724422970434,10.05245,2681.3,2679.5,7.3954]
[1724422970636,6.3228,2681.3,2679.7,3.73171]
[1724422970837,10.05233,2681.3,2679.8,3.0]
[1724422971149,6.2039,2680.9,2679.7,3.0]
[1724422971297,6.2039,2680.9,2679.5,0.66337]
[1724422971298,0.09328186,2680.8,2679.5,0.66337]
[1724422971503,9.93399,2680.9,2679.4,3.0]
[1724422971504,6.2039,2680.9,2679.6,0.07429542]
[1724422971729,6.2039,2680.9,2679.4,6.73217]
[1724422971730,0.09327538,2680.8,2679.5,3.73198]
[1724422971914,0.09327538,2680.8,2679.6,3.0]
[1724422972124,0.09327627,2680.7,2679.6,3.0]
[1724422972352,0.09327627,2680.7,2678.9,6.6337]
[1724422972666,0.62971763,2680.7,2679.1,3.73258]
[1724422972947,0.62971763,2680.7,2679.2,3.0]
[1724422973098,0.72300755,2680.7,2679.0,8.05086058]
[1724422973302,0.72300755,2680.7,2678.7,3.73313]
[1724422973303,6.9296,2680.6,2678.7,3.73313]
[1724422973620,6.3796,2680.2,2678.8,3.73297]
[1724422973816,0.09330369,2680.1,2678.8,3.73298]
[1724422974015,0.09330369,2680.1,2678.6,3.73328]
[1724422974244,0.09330369,2680.1,2678.4,10.33042]
[1724422974443,0.09330369,2680.1,2678.4,3.73352]
[1724422974444,6.0373,2679.9,2678.4,3.73352]
[1724422974650,6.0373,2679.9,2678.8,3.73288]
[1724422974951,6.0373,2679.9,2678.9,3.73286]
[1724422975098,0.09330376,2680.4,2678.8,3.73296]
[1724422975300,0.55,2680.3,2678.9,3.73286]
[1724422975553,0.55,2680.4,2679.1,3.73259]
[1724422975705,0.55,2680.4,2679.2,3.0]
[1724422975906,6.4065,2680.5,2679.0,3.0]
[1724422976205,6.49979884,2680.5,2679.0,3.0]
[1724422976411,0.55,2680.4,2679.0,3.0]
[1724422976734,6.10941032,2680.3,2678.5,3.73338]
[1724422976918,6.0161,2680.0,2678.6,3.73329]
[1724422977119,6.0161,2680.0,2678.3,6.54770582]
[1724422977306,6.0161,2680.0,2679.2,3.73235]
[1724422977508,0.62971763,2680.7,2679.3,6.2728]
[1724422977509,3.0,2680.6,2679.3,6.2728]
[1724422977708,3.0,2680.6,2679.1,3.73258]
[1724422977709,0.09328899,2680.5,2679.1,3.73258]
[1724422977939,0.3823899,2680.4,2679.1,3.73255]
[1724422978142,0.09329874,2680.3,2679.2,3.0]
[1724422978336,3.0,2680.6,2679.2,6.73243]
[1724422978537,3.62971763,2680.7,2679.3,6.73219]
[1724422978721,3.62971763,2680.7,2679.3,3.73219]
[1724422979048,0.62971763,2680.7,2679.4,3.0]
[1724422979351,0.62971763,2680.7,2679.5,4.405219]
[1724422979564,0.62971763,2680.7,2679.6,3.0]
[1724422979858,6.4973,2680.6,2679.5,3.0]
[1724422980058,6.4973,2680.6,2679.2,3.0]
[1724422980214,6.4973,2680.6,2679.3,3.73222]
[1724422980411,6.4973,2680.6,2679.5,3.73199]
[1724422980700,6.4973,2680.6,2679.4,3.0]
[1724422980875,1.2930213,2680.5,2679.4,3.0]
[1724422981186,1.2930213,2680.5,2679.1,3.73254]
[1724422981187,1.19973,2680.5,2679.2,3.0]
[1724422981492,6.4973,2680.6,2679.5,3.73203]
[1724422981694,6.4973,2680.6,2679.6,3.0]
[1724422981988,0.0932843,2680.9,2679.7,3.73162]
[1724422982355,0.0932843,2680.9,2679.8,3.0]
[1724422982693,6.4501,2681.1,2679.9,3.73147]
[1724422982694,0.09327559,2681.0,2679.9,3.73147]
[1724422982894,6.54337554,2681.1,2679.8,3.0]
[1724422983099,0.1304277,2681.6,2680.3,3.73089]
[1724422983395,0.09324979,2681.5,2680.4,7.103859]
[1724422983703,0.1304277,2681.6,2680.6,3.73037]
[1724422983842,0.1304277,2681.6,2680.7,3.07421498]
[1724422984044,0.1304277,2681.6,2680.7,6.73036]
[1724422984256,0.1304277,2681.6,2680.7,3.0]
[1724422984490,0.09324984,2681.5,2680.4,0.373089]
[1724422984688,0.1304277,2681.6,2680.5,0.48460176]
[1724422984896,0.1304277,2681.6,2681.0,3.72992]
[1724422985098,0.1304277,2681.6,2681.5,3.72925]
[1724422985302,0.58414,2683.4,2681.5,3.72925]
[1724422985303,0.8304277,2684.3,2682.2,6.2199]
[1724422985500,0.1304277,2687.0,2684.5,6.2199]
[1724422985648,0.1304277,2687.0,2685.1,14.04620582]
[1724422985846,0.1304277,2687.0,2685.6,0.03699607]
[1724422986217,0.1304277,2687.0,2684.2,0.75078065]
[1724422986218,3.7226,2686.3,2684.9,0.03699607]
[1724422986506,3.7226,2686.3,2684.0,7.60372712]
[1724422986507,3.72305,2686.0,2684.0,0.03699607]
[1724422986653,6.5099,2685.0,2684.0,0.03699607]
[1724422986883,6.5099,2685.0,2683.5,3.0]
[1724422986884,10.23434,2685.0,2683.5,0.03699607]
[1724422987195,10.23434,2685.0,2684.2,0.03699607]
[1724422987196,6.5099,2685.0,2684.2,0.03699607]
[1724422987508,3.7246,2684.9,2683.8,0.03699607]
[1724422987668,3.72562,2684.2,2683.1,0.03699607]
[1724422987853,6.1518,2684.7,2682.4,3.72788]
[1724422987854,3.72547,2684.3,2683.3,0.03699607]
[1724422988045,6.72551,2684.2,2682.9,0.03699607]
[1724422988295,6.72551,2684.2,2682.1,10.27608582]
[1724422988296,3.72623,2683.7,2682.6,0.03699607]
[1724422988593,3.72647,2683.5,2682.4,0.03699607]
[1724422988743,3.72647,2683.5,2681.6,7.10426978]
[1724422988744,0.38196555,2683.5,2682.7,0.55656396]
[1724422989101,0.09318806,2683.4,2682.8,0.03699607]
[1724422989263,6.3339,2684.0,2683.4,0.03699607]
[1724422989463,6.3339,2684.0,2682.6,6.54770582]
[1724422989464,6.445,2684.7,2683.6,0.03699607]
[1724422989773,0.09314616,2684.6,2683.6,0.03699607]
[1724422989942,3.72509,2684.5,2683.4,0.03699607]
[1724422990149,0.47498358,2684.4,2683.2,0.03699607]
[1724422990350,0.09315996,2684.4,2683.2,0.03699607]
[1724422990897,3.72551,2684.2,2683.2,0.03699607]
[1724422991077,0.55,2684.1,2683.2,0.03699607]
[1724422991264,6.72495,2684.6,2683.4,0.03699607]
[1724422991651,0.55,2684.5,2683.6,0.03699607]
[1724422991853,0.09315102,2684.4,2683.6,0.03699607]
[1724422992047,1.5495,2684.5,2683.6,0.03699607]
[1724422992692,0.09315986,2684.4,2683.4,0.03699607]
[1724422992863,0.55,2684.3,2683.1,0.03699607]
[1724422993069,0.55,2684.3,2683.4,0.03699607]
[1724422993248,0.09316186,2684.2,2683.2,0.03699607]
[1724422993449,0.55,2684.1,2683.4,0.03699607]
[1724422993800,3.7254,2684.3,2682.9,0.03699607]
[1724422993945,7.27551,2684.2,2682.9,0.03699607]
[1724422994147,3.72551,2684.2,2682.9,0.03699607]
[1724422994359,3.977551,2684.1,2683.2,0.03699607]
[1724422994565,3.72595,2683.9,2682.9,0.03699607]
[1724422994796,0.64318251,2683.8,2682.9,0.03699607]
[1724422994963,3.55,2683.8,2682.9,0.03699607]
[1724422995163,4.205,2683.8,2682.9,0.03699607]
[1724422995488,3.72634,2683.6,2682.9,0.03699607]
[1724422995654,0.09318354,2683.5,2682.5,0.03699607]
[1724422995855,0.55,2683.4,2682.2,0.03699607]
[1724422996109,0.55,2683.4,2680.9,3.72996]
[1724422996110,3.72774,2682.6,2681.8,0.03699607]
[1724422996401,0.09321765,2682.5,2681.8,0.03699607]
[1724422996607,0.55,2683.4,2681.8,0.03699607]
[1724422996608,3.72762,2682.7,2681.8,0.03699607]
[1724422996769,0.55,2682.6,2681.8,0.03699607]
[1724422996965,3.72762,2682.7,2681.8,0.03699607]
[1724422997171,6.0948,2682.6,2681.4,0.03699607]
[1724422997377,4.26203008,2682.5,2681.4,0.03699607]
[1724422997686,4.16880154,2682.5,2681.6,0.03699607]
[1724422997889,3.0,2682.8,2682.0,0.03699607]
[1724422998090,3.72706,2683.1,2682.0,0.03699607]
[1724422998091,0.55,2682.7,2682.0,0.03699607]
[1724422998256,3.0,2682.9,2680.8,6.528988]
[1724422998257,3.72774,2682.6,2681.6,0.03699607]
[1724422998601,3.72774,2682.6,2681.0,3.72983]
[1724422998602,3.0,2682.9,2682.2,0.03699607]
[1724422998758,6.72705,2683.1,2682.2,0.03699607]
[1724422998960,5.559365,2683.0,2682.0,0.03699607]
[1724422999161,3.72813,2682.4,2681.5,0.03699607]
[1724422999454,3.7279,2682.5,2681.7,0.03699607]
[1724422999601,6.72779,2682.6,2681.7,0.03699607]
[1724422999764,3.55,2682.5,2681.7,0.03699607]
[1724422999964,1.282185,2683.0,2682.1,0.03699607]
[1724423000178,1.282185,2683.0,2680.9,3.0]
[1724423000179,0.55,2682.9,2681.4,0.03699607]
[1724423000395,3.72866,2682.0,2681.2,0.03699607]
[1724423000710,0.09323454,2681.9,2681.2,0.03699607]
[1724423000865,3.72866,2682.0,2681.2,0.03699607]
[1724423001060,9.8537,2682.2,2681.4,0.03699607]
[1724423001263,3.64323261,2682.1,2681.4,0.03699607]
[1724423001509,3.64323261,2682.1,2681.2,0.03699607]
[1724423001680,3.7286,2682.0,2681.2,0.03699607]
[1724423002013,3.72899,2681.7,2681.2,0.03699607]
[1724423002414,3.72871,2681.9,2681.2,0.03699607]
[1724423002572,0.55,2681.8,2681.2,0.03699607]
[1724423002914,3.72925,2681.5,2681.0,0.03699607]
[1724423003223,0.55,2681.8,2681.0,0.03699607]
[1724423003424,3.0,2681.7,2681.0,0.03699607]
[1724423003604,0.55,2681.8,2681.0,0.03699607]
[1724423004423,3.0,2681.9,2681.4,0.03699607]
[1724423004630,3.0,2682.1,2681.4,0.03699607]
[1724423004918,3.72828,2682.3,2681.4,0.03699607]
[1724423005075,3.72844,2682.1,2681.4,0.03699607]
[1724423005275,3.922828,2682.2,2681.4,0.03699607]
[1724423005477,7.651128,2682.2,2681.4,0.03699607]
[1724423005808,3.7274,2682.9,2682.1,0.03699607]
[1724423006010,3.72708,2683.1,2682.1,0.03699607]
[1724423006212,3.72712,2683.1,2682.4,0.03699607]
[1724423006534,3.72679,2683.3,2682.6,0.03699607]
[1724423006681,3.72671,2683.4,2682.6,0.03699607]
[1724423006879,0.745322,2683.4,2682.6,0.03699607]
[1724423007100,0.745322,2683.4,2681.3,9.528988]
[1724423007101,3.72692,2683.2,2682.3,0.03699607]
[1724423007295,3.72739,2682.9,2682.1,0.03699607]
[1724423007546,3.0,2683.3,2682.1,0.03699607]
[1724423007747,3.72775,2682.6,2681.8,0.03699607]
[1724423008402,3.72775,2682.6,2681.9,0.03699607]
[1724423008746,0.372775,2682.5,2681.9,0.03699607]
[1724423008941,3.0,2682.8,2681.9,0.03699607]
[1724423009166,3.72783,2682.6,2681.9,0.03699607]
[1724423009498,0.55,2682.7,2681.9,0.03699607]
[1724423009695,0.55,2682.7,2682.2,0.03699607]
[1724423009696,3.0,2682.7,2682.2,0.03699607]
[1724423009994,3.0,2682.7,2681.6,0.03699607]
[1724423010212,0.6,2682.6,2681.8,0.03699607]
[1724423010440,3.0,2682.6,2682.2,0.03699607]
[1724423010640,6.1097,2683.2,2682.4,0.03699607]
[1724423010941,4.38108,2683.8,2681.2,3.0]
[1724423010942,3.72666,2683.4,2682.6,0.03699607]
[1724423011110,3.72689,2683.2,2682.6,0.03699607]
[1724423011510,3.72662,2683.4,2682.6,0.03699607]
[1724423011717,4.099282,2683.4,2682.6,0.03699607]
[1724423012044,4.099282,2683.4,2682.0,6.4289]
[1724423012045,4.38111,2683.8,2683.0,0.03699607]
[1724423012228,3.72647,2683.6,2683.0,0.03699607]
[1724423012416,4.38116,2683.8,2683.0,0.03699607]
[1724423012812,3.7256,2684.2,2683.4,0.03699607]
[1724423013047,3.72587,2684.0,2683.4,0.03699607]
[1724423013357,3.72587,2684.0,2683.1,6.1292]
[1724423013358,3.72529,2684.4,2683.6,0.03699607]
[1724423013516,3.72529,2684.4,2683.1,6.1292]
[1724423013517,7.45005,2684.6,2683.8,0.03699607]
[1724423013852,3.72532,2684.4,2683.8,0.03699607]
[1724423014006,0.46568927,2684.3,2683.6,0.03699607]
[1724423014196,3.72573,2684.1,2683.4,0.03699607]
[1724423014413,3.72546,2684.3,2683.6,0.03699607]
[1724423014620,3.725,2684.6,2683.8,0.03699607]
[1724423014814,3.72524,2684.4,2683.6,0.03699607]
[1724423015013,3.7248,2684.8,2683.8,0.03699607]
[1724423015014,3.72472,2684.8,2683.8,0.03699607]
[1724423015242,4.705012,2684.8,2683.8,0.03699607]
[1724423015445,3.7247,2684.8,2684.0,0.03699607]
[1724423015813,3.72442,2685.0,2684.2,0.03699607]
[1724423016015,3.72416,2685.2,2684.2,0.03699607]
[1724423016345,3.72416,2685.2,2684.4,0.03699607]
[1724423016346,3.72425,2685.2,2684.4,0.03699607]
[1724423016653,3.72398,2685.3,2684.6,0.03699607]
[1724423017002,9.89822,2685.5,2684.6,0.03699607]
[1724423017250,3.72372,2685.5,2684.6,0.03699607]
[1724423017409,3.7241,2685.3,2684.6,0.03699607]
[1724423017841,3.72372,2685.5,2684.9,0.03699607]
[1724423018040,0.74029834,2685.5,2684.9,0.03699607]
[1724423018282,3.72385,2685.4,2684.9,0.03699607]
[1724423018408,4.46408834,2685.5,2684.9,0.03699607]
[1724423018624,0.74029834,2685.5,2684.9,0.03699607]
[1724423018835,3.72346,2685.7,2684.9,0.03699607]
[1724423019149,3.72385,2685.4,2684.7,0.03699607]
[1724423019363,3.72385,2685.4,2684.0,5.9935]
[1724423019364,3.72385,2685.4,2684.8,0.03699607]
[1724423019653,6.72361,2685.6,2683.2,10.255738]
[1724423019654,3.0,2685.6,2685.1,0.03699607]
[1724423019836,6.72344,2685.7,2685.1,0.03699607]
[1724423020041,0.46371471,2686.7,2685.3,0.03699607]
[1724423020042,3.72323,2685.9,2685.3,0.03699607]
[1724423020207,0.66076,2686.0,2685.3,0.03699607]
[1724423020409,4.38388,2686.0,2685.3,0.03699607]
[1724423020643,3.72315,2685.9,2685.3,0.03699607]
[1724423020860,3.72312,2686.0,2685.3,0.03699607]
[1724423021207,3.72334,2685.8,2685.3,0.03699607]
[1724423021665,6.5346,2686.8,2685.7,0.03699607]
[1724423021807,3.72273,2686.2,2685.7,0.03699607]
[1724423022066,3.72248,2686.4,2685.7,0.03699607]
[1724423022410,3.72274,2686.2,2685.7,0.03699607]
[1724423022558,3.72224,2686.6,2686.0,0.03699607]
[1724423022755,4.094464,2686.6,2686.0,0.03699607]
[1724423022960,3.72224,2686.6,2686.0,0.03699607]
[1724423023204,3.72239,2686.5,2686.0,0.03699607]
[1724423023510,3.72195,2686.8,2686.0,0.03699607]
[1724423023672,3.72195,2686.8,2685.6,6.2538]
[1724423023673,0.09308372,2686.7,2685.6,0.03699607]
[1724423023885,0.09308372,2686.7,2685.1,6.6651]
[1724423023886,3.72314,2686.0,2685.3,0.03699607]
[1724423024062,3.72344,2685.7,2685.3,0.03699607]
[1724423024270,3.81667213,2685.6,2684.9,0.03699607]
[1724423024463,6.72333,2685.8,2685.1,0.03699607]
[1724423024679,6.72333,2685.8,2684.6,6.3652]
[1724423024680,6.72333,2685.8,2685.4,0.03699607]
[1724423025010,6.72333,2685.8,2684.6,6.3652]
[1724423025011,3.72365,2685.6,2685.1,0.03699607]
[1724423025215,3.72365,2685.6,2684.9,0.03699607]
[1724423025216,3.72398,2685.3,2684.9,0.03699607]
[1724423025367,3.81690607,2685.5,2684.9,0.03699607]
[1724423025567,0.09311607,2685.5,2684.9,0.03699607]
[1724423025777,3.81687607,2685.5,2684.9,0.03699607]
[1724423025979,3.0,2685.4,2684.9,0.03699607]
[1724423026288,3.0,2685.4,2684.8,0.03699607]
[1724423026289,0.09311537,2685.3,2684.8,0.03699607]
[1724423026531,0.09311537,2685.3,2684.5,0.03699607]
[1724423026532,3.72468,2684.8,2684.5,0.03699607]
[1724423026826,0.09313656,2684.7,2684.4,0.03699607]
[1724423027040,3.0,2685.2,2684.6,0.03699607]
[1724423027178,3.72404,2685.3,2684.6,0.03699607]
[1724423027372,0.372404,2685.2,2684.8,0.03699607]
[1724423027572,3.46552756,2685.2,2684.4,0.03699607]
[1724423027806,3.46552756,2685.2,2684.1,6.327]
[1724423027807,3.0,2685.7,2684.8,0.03699607]
[1724423028004,3.0,2685.7,2684.1,6.327]
[1724423028005,3.0,2685.7,2684.6,0.03699607]
[1724423028216,3.72438,2685.1,2684.6,0.03699607]
[1724423028523,3.72413,2685.2,2684.6,0.03699607]
[1724423028728,3.72384,2685.4,2684.1,6.327]
[1724423028729,3.0,2685.4,2685.1,0.03699607]
[1724423029028,4.396209,2685.4,2684.7,0.03699607]
[1724423029326,3.72471,2684.8,2684.4,0.03699607]
[1724423029479,3.0,2685.2,2684.0,0.03699607]
[1724423029679,3.72461,2684.9,2684.0,0.03699607]
[1724423029878,3.72564,2684.2,2683.8,0.03699607]
[1724423030132,3.72564,2684.2,2682.8,3.72743]
[1724423030133,3.0,2684.6,2684.3,0.03699607]
[1724423030432,3.72519,2684.5,2683.9,6.77569607]
[1724423030643,0.55,2684.4,2683.9,0.03699607]
[1724423030922,3.0,2684.8,2684.3,0.03699607]
[1724423031121,3.0,2684.8,2684.5,0.03699607]
[1724423031278,3.72402,2685.3,2683.6,0.07396049]
[1724423031279,3.72412,2685.2,2684.7,0.03699607]
[1724423031479,3.72463,2684.9,2684.5,0.03699607]
[1724423031785,3.72441,2685.0,2684.5,0.03699607]
[1724423031999,6.7243,2685.1,2684.5,0.03699607]
[1724423032181,3.72375,2685.5,2684.8,0.03699607]
[1724423032410,3.72387,2685.4,2684.8,0.03699607]
[1724423032720,3.72449,2685.0,2684.6,0.03699607]
[1724423032931,0.09313349,2684.9,2684.6,0.03699607]
[1724423033221,3.7236,2685.6,2684.8,0.03699607]
[1724423033529,3.72404,2685.3,2684.8,0.03699607]
[1724423033827,4.468779,2685.3,2684.8,0.03699607]
[1724423033993,4.468779,2685.3,2684.6,0.03699607]
[1724423033994,3.72423,2685.2,2684.6,0.03699607]
[1724423034179,3.0,2685.5,2684.9,0.03699607]
[1724423034384,6.72372,2685.5,2684.9,0.03699607]
[1724423034582,3.724,2685.3,2684.7,0.03699607]
[1724423034926,4.044731,2685.5,2684.7,0.03699607]
[1724423034927,7.44792,2685.4,2684.7,0.03699607]
[1724423035137,6.724,2685.3,2684.7,0.03699607]
[1724423035426,6.724,2685.3,2684.3,6.3566]
[1724423035427,3.0,2685.3,2684.9,0.03699607]
[1724423035629,3.0,2685.3,2684.3,6.3566]
[1724423035630,6.72398,2685.3,2684.7,0.03699607]
[1724423035795,3.46797615,2685.3,2684.9,0.03699607]
[1724423036130,3.72441,2685.0,2684.7,0.03699607]
[1724423036295,3.64313688,2684.9,2684.0,0.03699607]
[1724423036634,3.72517,2684.5,2684.0,0.03699607]
[1724423036925,3.81799111,2684.7,2684.0,0.03699607]
[1724423037167,3.81799111,2684.7,2683.7,6.5552]
[1724423037168,3.55,2684.6,2684.3,0.03699607]
[1724423037349,3.0,2684.8,2684.3,0.03699607]
[1724423037670,3.72462,2684.9,2684.3,0.03699607]
[1724423037875,3.55,2684.8,2684.3,0.03699607]